[Event "Titled Tuesday Blitz May 31 Early 2022"]
[White "Costachi, Mihnea"]
[Black "Golubev, Mikhail"]
[WhiteFideId "1217518"]
[BlackFideId "14100983"]
[WhiteElo "2476"]
[BlackElo "2374"]
[Result "1-0"]
[Round "02"]
[TimeControl "180+1"]
[Date "2022.05.31"]
[WhiteClock "0:00:42"]
[BlackClock "0:00:02"]

1. e3 {[%clk 0:02:58]}  g6 {[%clk 0:02:57]} 2. Nf3 {[%clk 0:02:56]}  Bg7 {[%clk 0:02:58]} 3. c4 {[%clk 0:02:57]}  e5 {[%clk 0:02:57]} 4. Nc3 {[%clk 0:02:56]}  d6 {[%clk 0:02:56]} 5. b3 {[%clk 0:02:56]}  e4 {[%clk 0:02:52]} 6. Nd4 {[%clk 0:02:56]}  c5 {[%clk 0:02:43]} 7. Nc2 {[%clk 0:02:53]}  Nc6 {[%clk 0:02:38]} 8. Bb2 {[%clk 0:02:50]}  f5 {[%clk 0:02:24]} 9. d3 {[%clk 0:02:40]}  exd3 {[%clk 0:02:24]} 10. Bxd3 {[%clk 0:02:38]}  Nf6 {[%clk 0:02:23]} 11. O-O {[%clk 0:02:36]}  O-O {[%clk 0:02:23]} 12. Be2 {[%clk 0:02:34]}  Qe7 {[%clk 0:02:07]} 13. Bf3 {[%clk 0:02:30]}  Ne4 {[%clk 0:01:56]} 14. Nd5 {[%clk 0:02:26]}  Qf7 {[%clk 0:01:48]} 15. Bxg7 {[%clk 0:02:10]}  Qxg7 {[%clk 0:01:48]} 16. Na3 {[%clk 0:01:58]}  Ne5 {[%clk 0:01:17]} 17. Be2 {[%clk 0:01:55]}  Be6 {[%clk 0:01:09]} 18. Qc2 {[%clk 0:01:50]}  Bxd5 {[%clk 0:01:07]} 19. cxd5 {[%clk 0:01:50]}  a6 {[%clk 0:01:04]} 20. f3 {[%clk 0:01:50]}  Nc3 {[%clk 0:01:00]} 21. f4 {[%clk 0:01:42]}  Nxe2+ {[%clk 0:00:59]} 22. Qxe2 {[%clk 0:01:43]}  Ng4 {[%clk 0:00:58]} 23. Nc4 {[%clk 0:01:39]}  Rad8 {[%clk 0:00:49]} 24. h3 {[%clk 0:01:35]}  Nf6 {[%clk 0:00:48]} 25. Qd3 {[%clk 0:01:34]}  Rfe8 {[%clk 0:00:42]} 26. Rfe1 {[%clk 0:01:33]}  Ne4 {[%clk 0:00:40]} 27. Nd2 {[%clk 0:01:31]}  Nxd2 {[%clk 0:00:38]} 28. Qxd2 {[%clk 0:01:31]}  Re4 {[%clk 0:00:38]} 29. Rac1 {[%clk 0:01:25]}  Rde8 {[%clk 0:00:37]} 30. Rc3 {[%clk 0:01:24]}  b5 {[%clk 0:00:23]} 31. Kf2 {[%clk 0:01:14]}  h6 {[%clk 0:00:22]} 32. Rd3 {[%clk 0:01:14]}  Qf6 {[%clk 0:00:22]} 33. Kg1 {[%clk 0:01:14]}  Kh7 {[%clk 0:00:22]} 34. g3 {[%clk 0:01:14]}  R8e7 {[%clk 0:00:21]} 35. Kf2 {[%clk 0:01:13]}  g5 {[%clk 0:00:21]} 36. fxg5 {[%clk 0:01:12]}  hxg5 {[%clk 0:00:20]} 37. Kg2 {[%clk 0:01:12]}  f4 {[%clk 0:00:19]} 38. Qf2 {[%clk 0:01:07]}  Qg6 {[%clk 0:00:13]} 39. gxf4 {[%clk 0:01:03]}  gxf4+ {[%clk 0:00:13]} 40. Kh2 {[%clk 0:01:03]}  R4e5 {[%clk 0:00:10]} 41. Rg1 {[%clk 0:00:57]}  fxe3 {[%clk 0:00:07]} 42. Qf8 {[%clk 0:00:48]}  Qe8 {[%clk 0:00:02]} 43. Qf6 {[%clk 0:00:43]}  Rh5 {[%clk 0:00:02]} 44. Rxe3 {[%clk 0:00:42]} 1-0


[Site "https://www.chess.com"]

[Event "Titled Tuesday Blitz May 31 Early 2022"]
[White "Daneshvar, Bardiya"]
[Black "Nasir, Zehn"]
[WhiteFideId "12576468"]
[BlackFideId "2613239"]
[WhiteElo "2330"]
[BlackElo "1993"]
[Result "1-0"]
[Round "02"]
[TimeControl "180+1"]
[Date "2022.06.01"]
[WhiteClock "0:01:13"]
[BlackClock "0:00:03"]

1. b3 {[%clk 0:03:00]}  d5 {[%clk 0:02:55]} 2. Bb2 {[%clk 0:02:59]}  Bf5 {[%clk 0:02:55]} 3. d3 {[%clk 0:02:58]}  Nf6 {[%clk 0:02:53]} 4. Nd2 {[%clk 0:02:58]}  e6 {[%clk 0:02:53]} 5. g3 {[%clk 0:02:57]}  c6 {[%clk 0:02:53]} 6. Bg2 {[%clk 0:02:57]}  Nbd7 {[%clk 0:02:53]} 7. e4 {[%clk 0:02:57]}  Bg6 {[%clk 0:02:48]} 8. e5 {[%clk 0:02:51]}  Ng8 {[%clk 0:02:47]} 9. h4 {[%clk 0:02:52]}  h5 {[%clk 0:02:45]} 10. Nh3 {[%clk 0:02:52]}  Qc7 {[%clk 0:02:31]} 11. Nf4 {[%clk 0:02:41]}  Ne7 {[%clk 0:02:10]} 12. Qe2 {[%clk 0:02:38]}  Bf5 {[%clk 0:01:58]} 13. Nxh5 {[%clk 0:02:35]}  O-O-O {[%clk 0:01:46]} 14. Nf4 {[%clk 0:02:31]}  c5 {[%clk 0:01:33]} 15. c4 {[%clk 0:02:23]}  d4 {[%clk 0:01:30]} 16. b4 {[%clk 0:02:12]}  Qxe5 {[%clk 0:01:24]} 17. Nb3 {[%clk 0:02:07]}  Qxe2+ {[%clk 0:01:23]} 18. Kxe2 {[%clk 0:02:08]}  e5 {[%clk 0:01:21]} 19. Nd5 {[%clk 0:02:08]}  Nxd5 {[%clk 0:01:20]} 20. Bxd5 {[%clk 0:02:09]}  f6 {[%clk 0:01:10]} 21. bxc5 {[%clk 0:02:05]}  Nxc5 {[%clk 0:01:09]} 22. Nxc5 {[%clk 0:02:05]}  Bxc5 {[%clk 0:01:10]} 23. f3 {[%clk 0:02:05]}  Kc7 {[%clk 0:01:05]} 24. g4 {[%clk 0:02:05]}  Bd7 {[%clk 0:01:03]} 25. Be4 {[%clk 0:02:02]}  Bc6 {[%clk 0:01:02]} 26. h5 {[%clk 0:02:02]}  Bxe4 {[%clk 0:00:59]} 27. fxe4 {[%clk 0:02:02]}  Rd6 {[%clk 0:00:58]} 28. Bc1 {[%clk 0:01:58]}  Bb4 {[%clk 0:00:55]} 29. Rb1 {[%clk 0:01:58]}  Bc3 {[%clk 0:00:53]} 30. Rb5 {[%clk 0:01:51]}  Ra6 {[%clk 0:00:49]} 31. a3 {[%clk 0:01:51]}  Ra5 {[%clk 0:00:49]} 32. Rb3 {[%clk 0:01:48]}  a6 {[%clk 0:00:45]} 33. Rf1 {[%clk 0:01:45]}  b5 {[%clk 0:00:43]} 34. cxb5 {[%clk 0:01:41]}  Rxb5 {[%clk 0:00:43]} 35. Rxb5 {[%clk 0:01:41]}  axb5 {[%clk 0:00:44]} 36. h6 {[%clk 0:01:42]}  gxh6 {[%clk 0:00:40]} 37. Rxf6 {[%clk 0:01:41]}  h5 {[%clk 0:00:39]} 38. g5 {[%clk 0:01:42]}  Kd7 {[%clk 0:00:25]} 39. g6 {[%clk 0:01:29]}  Ke7 {[%clk 0:00:22]} 40. Bg5 {[%clk 0:01:29]}  Rg8 {[%clk 0:00:16]} 41. Kf3 {[%clk 0:01:15]}  Kd7 {[%clk 0:00:15]} 42. Kg3 {[%clk 0:01:10]}  Be1+ {[%clk 0:00:15]} 43. Kh3 {[%clk 0:01:10]}  b4 {[%clk 0:00:14]} 44. axb4 {[%clk 0:01:10]}  Bxb4 {[%clk 0:00:15]} 45. Kh4 {[%clk 0:01:10]}  Bf8 {[%clk 0:00:08]} 46. Kxh5 {[%clk 0:01:10]}  Bg7 {[%clk 0:00:07]} 47. Rf7+ {[%clk 0:01:10]}  Ke6 {[%clk 0:00:07]} 48. Kg4 {[%clk 0:01:10]}  Bf8 {[%clk 0:00:06]} 49. Rf6+ {[%clk 0:01:10]}  Kd7 {[%clk 0:00:06]} 50. Kf5 {[%clk 0:01:11]}  Bd6 {[%clk 0:00:06]} 51. Rf7+ {[%clk 0:01:11]}  Kc6 {[%clk 0:00:06]} 52. g7 {[%clk 0:01:11]}  Ra8 {[%clk 0:00:04]} 53. Bf6 {[%clk 0:01:11]}  Rg8 {[%clk 0:00:04]} 54. Bxe5 {[%clk 0:01:11]}  Bxe5 {[%clk 0:00:03]} 55. Kxe5 {[%clk 0:01:12]}  Re8+ {[%clk 0:00:03]} 56. Kf6 {[%clk 0:01:12]}  Rg8 {[%clk 0:00:04]} 57. e5 {[%clk 0:01:12]}  Kd5 {[%clk 0:00:04]} 58. e6 {[%clk 0:01:12]}  Re8 {[%clk 0:00:03]} 59. e7 {[%clk 0:01:12]}  Kc5 {[%clk 0:00:03]} 60. Rf8 {[%clk 0:01:13]} 1-0


[Site "https://www.chess.com"]

[Event "Titled Tuesday Blitz May 31 Early 2022"]
[White "Druska, Juraj"]
[Black "Stankovic, Ivan G"]
[WhiteFideId "14915650"]
[BlackFideId "902837"]
[WhiteElo "2369"]
[BlackElo "2195"]
[Result "0-1"]
[Round "02"]
[TimeControl "180+1"]
[Date "2022.06.01"]
[WhiteClock "0:00:03"]
[BlackClock "0:00:04"]

1. e4 {[%clk 0:03:00]}  c5 {[%clk 0:02:59]} 2. Nf3 {[%clk 0:02:57]}  Nc6 {[%clk 0:02:59]} 3. Bb5 {[%clk 0:02:56]}  g6 {[%clk 0:02:59]} 4. Bxc6 {[%clk 0:02:54]}  bxc6 {[%clk 0:03:00]} 5. O-O {[%clk 0:02:53]}  Bg7 {[%clk 0:02:59]} 6. c3 {[%clk 0:02:52]}  Nh6 {[%clk 0:02:57]} 7. d4 {[%clk 0:02:51]}  cxd4 {[%clk 0:02:55]} 8. cxd4 {[%clk 0:02:52]}  O-O {[%clk 0:02:55]} 9. Nc3 {[%clk 0:02:52]}  f5 {[%clk 0:02:55]} 10. Re1 {[%clk 0:02:50]}  fxe4 {[%clk 0:02:48]} 11. Nxe4 {[%clk 0:02:50]}  d6 {[%clk 0:02:41]} 12. h3 {[%clk 0:02:50]}  Nf5 {[%clk 0:02:40]} 13. Qc2 {[%clk 0:02:36]}  Qb6 {[%clk 0:02:01]} 14. Be3 {[%clk 0:02:28]}  Nxe3 {[%clk 0:01:59]} 15. Rxe3 {[%clk 0:02:28]}  Bf5 {[%clk 0:01:55]} 16. Qc3 {[%clk 0:01:38]}  Rab8 {[%clk 0:01:22]} 17. Rae1 {[%clk 0:01:21]}  Qxb2 {[%clk 0:01:20]} 18. Qxc6 {[%clk 0:01:18]}  Qxa2 {[%clk 0:01:17]} 19. Nc3 {[%clk 0:01:06]}  Qb2 {[%clk 0:01:06]} 20. Nd5 {[%clk 0:01:03]}  e5 {[%clk 0:01:00]} 21. dxe5 {[%clk 0:00:51]}  dxe5 {[%clk 0:01:00]} 22. Nxe5 {[%clk 0:00:38]}  Rbe8 {[%clk 0:00:24]} 23. Nf3 {[%clk 0:00:25]}  Rxe3 {[%clk 0:00:24]} 24. Rxe3 {[%clk 0:00:25]}  Qb1+ {[%clk 0:00:24]} 25. Kh2 {[%clk 0:00:24]}  Bh6 {[%clk 0:00:23]} 26. Ne7+ {[%clk 0:00:21]}  Kh8 {[%clk 0:00:21]} 27. Nxf5 {[%clk 0:00:20]}  Qxf5 {[%clk 0:00:16]} 28. Re8 {[%clk 0:00:16]}  Bf4+ {[%clk 0:00:14]} 29. g3 {[%clk 0:00:16]}  Bh6 {[%clk 0:00:13]} 30. Kg2 {[%clk 0:00:14]}  Bg7 {[%clk 0:00:11]} 31. Qa8 {[%clk 0:00:12]}  Rxe8 {[%clk 0:00:08]} 32. Qxe8+ {[%clk 0:00:13]}  Qf8 {[%clk 0:00:08]} 33. Qd7 {[%clk 0:00:12]}  Qa8 {[%clk 0:00:07]} 34. Qf7 {[%clk 0:00:07]}  a5 {[%clk 0:00:07]} 35. Kh2 {[%clk 0:00:07]}  a4 {[%clk 0:00:07]} 36. Ng5 {[%clk 0:00:06]}  Qf8 {[%clk 0:00:07]} 37. Qc4 {[%clk 0:00:05]}  Qxf2+ {[%clk 0:00:07]} 38. Kh1 {[%clk 0:00:06]}  h6 {[%clk 0:00:07]} 39. Nf7+ {[%clk 0:00:04]}  Kh7 {[%clk 0:00:07]} 40. Nd6 {[%clk 0:00:04]}  a3 {[%clk 0:00:06]} 41. Ne4 {[%clk 0:00:03]}  Qe1+ {[%clk 0:00:06]} 42. Kg2 {[%clk 0:00:03]}  Qb1 {[%clk 0:00:04]} 0-1


[Site "https://www.chess.com"]

[Event "Titled Tuesday Blitz May 31 Early 2022"]
[White "Fedoseev, Vladimir"]
[Black "Sadubayev, Airat"]
[WhiteFideId "24130737"]
[BlackFideId "13713264"]
[WhiteElo "2726"]
[BlackElo "2234"]
[Result "1/2-1/2"]
[Round "02"]
[TimeControl "180+1"]
[Date "2022.05.31"]
[WhiteClock "0:00:03"]
[BlackClock "0:00:03"]

1. e4 {[%clk 0:00:26]}  c6 {[%clk 0:02:47]} 2. Nf3 {[%clk 0:00:25]}  d5 {[%clk 0:02:46]} 3. exd5 {[%clk 0:00:26]}  cxd5 {[%clk 0:02:46]} 4. Ne5 {[%clk 0:00:27]}  Nf6 {[%clk 0:02:42]} 5. d4 {[%clk 0:00:27]}  g6 {[%clk 0:02:40]} 6. Bd3 {[%clk 0:00:27]}  Bg7 {[%clk 0:02:39]} 7. O-O {[%clk 0:00:27]}  O-O {[%clk 0:02:37]} 8. Re1 {[%clk 0:00:28]}  Nc6 {[%clk 0:02:32]} 9. c3 {[%clk 0:00:28]}  Bf5 {[%clk 0:02:30]} 10. Bxf5 {[%clk 0:00:26]}  gxf5 {[%clk 0:02:30]} 11. Nd3 {[%clk 0:00:27]}  e6 {[%clk 0:02:28]} 12. Bg5 {[%clk 0:00:26]}  Qb6 {[%clk 0:02:22]} 13. Bxf6 {[%clk 0:00:26]}  Bxf6 {[%clk 0:02:22]} 14. Nd2 {[%clk 0:00:27]}  Kh8 {[%clk 0:02:20]} 15. Re3 {[%clk 0:00:26]}  Rg8 {[%clk 0:02:18]} 16. Rh3 {[%clk 0:00:27]}  Rg7 {[%clk 0:02:13]} 17. Nf3 {[%clk 0:00:28]}  Rag8 {[%clk 0:02:11]} 18. g3 {[%clk 0:00:28]}  Qc7 {[%clk 0:01:53]} 19. Qd2 {[%clk 0:00:27]}  Ne7 {[%clk 0:01:44]} 20. Re1 {[%clk 0:00:25]}  Ng6 {[%clk 0:01:30]} 21. Kh1 {[%clk 0:00:25]}  f4 {[%clk 0:01:16]} 22. Nxf4 {[%clk 0:00:20]}  Nxf4 {[%clk 0:01:15]} 23. Qxf4 {[%clk 0:00:21]}  Qxf4 {[%clk 0:01:08]} 24. gxf4 {[%clk 0:00:22]}  Rg4 {[%clk 0:00:54]} 25. Ne5 {[%clk 0:00:20]}  R4g7 {[%clk 0:00:51]} 26. Rg3 {[%clk 0:00:19]}  Bh4 {[%clk 0:00:44]} 27. Rf3 {[%clk 0:00:18]}  f5 {[%clk 0:00:35]} 28. Nd3 {[%clk 0:00:17]}  Rg6 {[%clk 0:00:30]} 29. Rfe3 {[%clk 0:00:16]}  Re8 {[%clk 0:00:27]} 30. Re5 {[%clk 0:00:16]}  Re7 {[%clk 0:00:20]} 31. R5e3 {[%clk 0:00:16]}  b6 {[%clk 0:00:19]} 32. Rh3 {[%clk 0:00:16]}  Bf6 {[%clk 0:00:18]} 33. Rg3 {[%clk 0:00:16]}  Kg7 {[%clk 0:00:17]} 34. Kg2 {[%clk 0:00:15]}  Kf7 {[%clk 0:00:17]} 35. Kf3 {[%clk 0:00:14]}  Re8 {[%clk 0:00:17]} 36. Rh3 {[%clk 0:00:12]}  Rg7 {[%clk 0:00:16]} 37. Ne5+ {[%clk 0:00:11]}  Bxe5 {[%clk 0:00:15]} 38. fxe5 {[%clk 0:00:11]}  Re7 {[%clk 0:00:15]} 39. Rg3 {[%clk 0:00:11]}  Rg6 {[%clk 0:00:14]} 40. Reg1 {[%clk 0:00:11]}  Re8 {[%clk 0:00:13]} 41. h4 {[%clk 0:00:10]}  Reg8 {[%clk 0:00:13]} 42. h5 {[%clk 0:00:10]}  Rxg3+ {[%clk 0:00:09]} 43. Rxg3 {[%clk 0:00:11]}  Rxg3+ {[%clk 0:00:06]} 44. fxg3 {[%clk 0:00:09]}  Kg7 {[%clk 0:00:06]} 45. g4 {[%clk 0:00:08]}  fxg4+ {[%clk 0:00:05]} 46. Kxg4 {[%clk 0:00:09]}  Kh6 {[%clk 0:00:04]} 47. Kh4 {[%clk 0:00:09]}  b5 {[%clk 0:00:03]} 48. b3 {[%clk 0:00:08]}  a6 {[%clk 0:00:01]} 49. a4 {[%clk 0:00:07]}  bxa4 {[%clk 0:00:01]} 50. bxa4 {[%clk 0:00:08]}  Kg7 {[%clk 0:00:01]} 51. Kg5 {[%clk 0:00:08]}  a5 {[%clk 0:00:01]} 52. Kg4 {[%clk 0:00:06]}  Kh6 {[%clk 0:00:02]} 53. Kh4 {[%clk 0:00:07]}  Kg7 {[%clk 0:00:02]} 54. Kg5 {[%clk 0:00:07]}  Kf7 {[%clk 0:00:02]} 55. h6 {[%clk 0:00:06]}  Ke7 {[%clk 0:00:02]} 56. Kf4 {[%clk 0:00:06]}  Kf7 {[%clk 0:00:02]} 57. Kg5 {[%clk 0:00:03]}  Ke7 {[%clk 0:00:02]} 58. Kg4 {[%clk 0:00:04]}  Kf7 {[%clk 0:00:02]} 59. Kh5 {[%clk 0:00:05]}  Ke7 {[%clk 0:00:02]} 60. Kg5 {[%clk 0:00:04]}  Kf7 {[%clk 0:00:02]} 61. Kh5 {[%clk 0:00:04]}  Ke7 {[%clk 0:00:03]} 62. Kg4 {[%clk 0:00:04]}  Kf7 {[%clk 0:00:03]} 63. Kg5 {[%clk 0:00:03]} 1/2-1/2


[Site "https://www.chess.com"]

[Event "Titled Tuesday Blitz May 31 Early 2022"]
[White "Jaferian, Koosha"]
[Black "Bintang, Rasyid A. Hidayat"]
[WhiteFideId "12507440"]
[BlackFideId "7105355"]
[WhiteElo "2030"]
[BlackElo "2436"]
[Result "1-0"]
[Round "02"]
[TimeControl "180+1"]
[Date "2022.06.01"]
[WhiteClock "0:00:22"]
[BlackClock "0:00:06"]

1. Nf3 {[%clk 0:03:00]}  d5 {[%clk 0:02:58]} 2. b3 {[%clk 0:03:00]}  c5 {[%clk 0:02:55]} 3. e3 {[%clk 0:03:00]}  Nc6 {[%clk 0:02:52]} 4. Bb2 {[%clk 0:03:00]}  Nf6 {[%clk 0:02:52]} 5. Be2 {[%clk 0:03:00]}  Bf5 {[%clk 0:02:46]} 6. O-O {[%clk 0:02:58]}  e6 {[%clk 0:02:46]} 7. d4 {[%clk 0:02:59]}  cxd4 {[%clk 0:02:44]} 8. Nxd4 {[%clk 0:02:59]}  Nxd4 {[%clk 0:02:44]} 9. Bxd4 {[%clk 0:03:00]}  Bd6 {[%clk 0:02:40]} 10. c4 {[%clk 0:02:58]}  O-O {[%clk 0:02:36]} 11. Nd2 {[%clk 0:02:57]}  e5 {[%clk 0:02:26]} 12. Bb2 {[%clk 0:02:56]}  d4 {[%clk 0:02:14]} 13. exd4 {[%clk 0:02:53]}  exd4 {[%clk 0:02:15]} 14. Bf3 {[%clk 0:02:43]}  Rb8 {[%clk 0:02:05]} 15. g3 {[%clk 0:02:41]}  Bb4 {[%clk 0:01:58]} 16. a3 {[%clk 0:02:20]}  Bc3 {[%clk 0:01:54]} 17. Qc1 {[%clk 0:02:21]}  Bd3 {[%clk 0:01:36]} 18. Rd1 {[%clk 0:02:20]}  Bxb2 {[%clk 0:01:26]} 19. Qxb2 {[%clk 0:02:19]}  Re8 {[%clk 0:01:26]} 20. Nf1 {[%clk 0:02:12]}  Bxf1 {[%clk 0:01:25]} 21. Kxf1 {[%clk 0:02:12]}  d3 {[%clk 0:01:06]} 22. Rd2 {[%clk 0:02:13]}  Ne4 {[%clk 0:00:49]} 23. Bxe4 {[%clk 0:02:09]}  Rxe4 {[%clk 0:00:50]} 24. Rad1 {[%clk 0:02:10]}  Rd4 {[%clk 0:00:40]} 25. Qc3 {[%clk 0:02:04]}  Qf6 {[%clk 0:00:39]} 26. Rxd3 {[%clk 0:01:58]}  Rxd3 {[%clk 0:00:39]} 27. Rxd3 {[%clk 0:01:39]}  Qc6 {[%clk 0:00:33]} 28. Rd5 {[%clk 0:01:33]}  Rc8 {[%clk 0:00:28]} 29. Qd3 {[%clk 0:01:31]}  h6 {[%clk 0:00:23]} 30. h4 {[%clk 0:00:59]}  Qf6 {[%clk 0:00:20]} 31. Kg2 {[%clk 0:00:59]}  g6 {[%clk 0:00:18]} 32. Rd7 {[%clk 0:00:58]}  Qc6+ {[%clk 0:00:16]} 33. Qd5 {[%clk 0:00:58]}  Qxd5+ {[%clk 0:00:12]} 34. cxd5 {[%clk 0:00:57]}  Rb8 {[%clk 0:00:13]} 35. Kf3 {[%clk 0:00:55]}  Kf8 {[%clk 0:00:13]} 36. Rc7 {[%clk 0:00:52]}  Ke8 {[%clk 0:00:13]} 37. Kf4 {[%clk 0:00:52]}  Rd8 {[%clk 0:00:11]} 38. Rxb7 {[%clk 0:00:52]}  Rxd5 {[%clk 0:00:12]} 39. Rxa7 {[%clk 0:00:52]}  Rd3 {[%clk 0:00:12]} 40. Rb7 {[%clk 0:00:51]}  Kf8 {[%clk 0:00:12]} 41. Kg4 {[%clk 0:00:47]}  Kg7 {[%clk 0:00:11]} 42. Kh3 {[%clk 0:00:46]}  Rd2 {[%clk 0:00:12]} 43. a4 {[%clk 0:00:46]}  Rxf2 {[%clk 0:00:12]} 44. a5 {[%clk 0:00:44]}  g5 {[%clk 0:00:10]} 45. hxg5 {[%clk 0:00:41]}  hxg5 {[%clk 0:00:09]} 46. g4 {[%clk 0:00:41]}  Rf3+ {[%clk 0:00:04]} 47. Kg2 {[%clk 0:00:41]}  Rf4 {[%clk 0:00:04]} 48. Kg3 {[%clk 0:00:27]}  Kg6 {[%clk 0:00:04]} 49. a6 {[%clk 0:00:27]}  f5 {[%clk 0:00:05]} 50. a7 {[%clk 0:00:20]}  Rxg4+ {[%clk 0:00:04]} 51. Kf3 {[%clk 0:00:21]}  Rf4+ {[%clk 0:00:05]} 52. Ke3 {[%clk 0:00:21]}  Re4+ {[%clk 0:00:05]} 53. Kd3 {[%clk 0:00:22]}  Re8 {[%clk 0:00:05]} 54. Rb8 {[%clk 0:00:22]}  Re7 {[%clk 0:00:06]} 55. a8=Q {[%clk 0:00:22]} 1-0


[Site "https://www.chess.com"]

[Event "Titled Tuesday Blitz May 31 Early 2022"]
[White "Janaszak, Dawid"]
[Black "Lazavik, Denis"]
[WhiteFideId "1119206"]
[BlackFideId "13515110"]
[WhiteElo "2199"]
[BlackElo "2437"]
[Result "0-1"]
[Round "02"]
[TimeControl "180+1"]
[Date "2022.05.31"]
[WhiteClock "0:00:43"]
[BlackClock "0:01:15"]

1. e4 {[%clk 0:03:00]}  c5 {[%clk 0:02:59]} 2. Nc3 {[%clk 0:03:00]}  e6 {[%clk 0:02:59]} 3. Nge2 {[%clk 0:02:58]}  Nc6 {[%clk 0:02:59]} 4. g3 {[%clk 0:02:58]}  d5 {[%clk 0:02:58]} 5. exd5 {[%clk 0:02:55]}  exd5 {[%clk 0:02:58]} 6. d4 {[%clk 0:02:56]}  Bg4 {[%clk 0:02:57]} 7. Bg2 {[%clk 0:02:56]}  Nxd4 {[%clk 0:02:49]} 8. h3 {[%clk 0:02:54]}  Bf3 {[%clk 0:02:41]} 9. Kf1 {[%clk 0:02:54]}  Bxg2+ {[%clk 0:02:36]} 10. Kxg2 {[%clk 0:02:54]}  Ne6 {[%clk 0:02:06]} 11. Qxd5 {[%clk 0:02:48]}  Qxd5+ {[%clk 0:02:03]} 12. Nxd5 {[%clk 0:02:49]}  O-O-O {[%clk 0:02:04]} 13. c4 {[%clk 0:02:47]}  Ne7 {[%clk 0:02:01]} 14. Nec3 {[%clk 0:02:43]}  Nxd5 {[%clk 0:01:59]} 15. Nxd5 {[%clk 0:02:41]}  Bd6 {[%clk 0:01:59]} 16. Be3 {[%clk 0:02:34]}  Be5 {[%clk 0:01:57]} 17. Rab1 {[%clk 0:02:29]}  Rhe8 {[%clk 0:01:57]} 18. b4 {[%clk 0:02:22]}  Bd4 {[%clk 0:01:48]} 19. bxc5 {[%clk 0:02:17]}  Bxe3 {[%clk 0:01:47]} 20. fxe3 {[%clk 0:02:01]}  Nxc5 {[%clk 0:01:45]} 21. Rhf1 {[%clk 0:01:55]}  f6 {[%clk 0:01:43]} 22. Rb5 {[%clk 0:01:55]}  b6 {[%clk 0:01:42]} 23. a4 {[%clk 0:01:45]}  Re4 {[%clk 0:01:39]} 24. a5 {[%clk 0:01:31]}  Rxc4 {[%clk 0:01:25]} 25. axb6 {[%clk 0:01:28]}  a6 {[%clk 0:01:22]} 26. b7+ {[%clk 0:01:06]}  Kb8 {[%clk 0:01:17]} 27. Nb4 {[%clk 0:00:54]}  Rd2+ {[%clk 0:01:16]} 28. Kf3 {[%clk 0:00:43]}  axb5 {[%clk 0:01:15]} 0-1


[Site "https://www.chess.com"]